[Event "Summer Prague Open-A 2022"]
[Site "Prague"]
[Date "2022.08.12"]
[Round "9.14"]
[White "Kvaloy, Aksel Bu"]
[Black "Jun, Rudolf"]
[Result "1-0"]
[ECO "B31"]
[WhiteElo "2289"]
[BlackElo "2134"]
[Annotator "TA"]
[PlyCount "87"]
[EventDate "2022.08.05"]
[EventType "swiss"]
[EventCountry "CZE"]
[SourceTitle "playchess.com"]
[Source "ChessBase"]
[SourceQuality "1"]
[TimeControl "40/5400+30:1800+30"]

{[%evp 16,87,28,27,25,0,5,5,11,23,13,0,13,27,65,69,95,114,127,108,124,93,103,93,81,58,69,33,26,42,52,0,0,0,0,0,0,0,0,-89,0,0,829,812,1246,1155,1322,1301,1331,1322,1282,1247,2288,1761,6095,6160,4350,5789,29940,2073,6111,29976,29948,11951,29983,29984,29987,29988,29989,29990,29991,29991,29996,29997]} 1. e4 {[%emt 0:00:03]} c5 {[%emt 0:00:07]} 2. Nf3 {[%emt 0:00:04]} Nc6 {[%emt 0:00:34]} 3. Bb5 {[%emt 0:00:08]} g6 {[%emt 0:00:25]} 4. O-O {[%emt 0:00:08]} Bg7 {[%emt 0:00:11]} 5. Re1 {[%emt 0:00:17]} e5 {[%emt 0:00:32]} 6. b4 {[%emt 0:00:10]} cxb4 {[%emt 0:04:15]} 7. a3 {[%emt 0:00:54][%cal Ba2a3,Ba3b4,Bb4b5][%mdl 32]} Nge7 {[%emt 0:12:39]} 8. axb4 {[%emt 0:00:44]} O-O {[%emt 0:01:04]} 9. Bb2 {[%emt 0:20:48]} (9. Bxc6 $5 Nxc6 10. b5 $11) 9... d6 {[%emt 0:02:38] B31: Sicilian: 2...Nc6 3 Bb5 g6.} 10. Bxc6 {[%emt 0:07:19]} Nxc6 {[%emt 0:09:15]} 11. b5 {[%emt 0:00:35]} Nd4 {[%emt 0:02:01] The position is equal.} 12. Nxd4 {[%emt 0:11:10]} exd4 {[%emt 0:00:08]} 13. c4 {[%emt 0:11:15] [#]} f5 $146 {[%emt 0:05:26]} ({Predecessor:} 13... dxc3 14. Nxc3 Be6 15. d4 Qb6 16. d5 Bd7 17. Qd3 a6 18. Reb1 axb5 19. Na4 Qa7 {0-1 (33) Koszta,B (1905)-Szamoskozi,G (2257) Hungary 2019}) 14. d3 {[%emt 0:09:47]} f4 {[%emt 0:05:31][%cal Of4f3]} 15. f3 $1 {[%emt 0:00:59]} g5 {[%emt 0:00:11]} 16. Nd2 {[%emt 0:01:19]} h5 {[%emt 0:04:30]} 17. Nb3 {[%emt 0:11:22]} g4 {[%emt 0:02:05]} 18. Qe2 {[%emt 0:03:13]} (18. Bxd4 Bxd4+ 19. Nxd4 Qb6 $14) (18. Nxd4 $2 Qb6 19. e5 dxe5 $19) 18... Kh7 {[%emt 0:14:59]} 19. Bxd4 {[%emt 0:06:54]} (19. Nxd4 $6 Qb6 20. Qf2 g3 21. hxg3 fxg3 $11) 19... Be5 {[%emt 0:06:56]} 20. Bb2 {[%emt 0:05:23] White is more active.} Qh4 $1 {[%emt 0:02:53]} (20... gxf3 21. gxf3 a5 22. d4 $16) 21. d4 {[%emt 0:00:54]} g3 $1 {[%emt 0:02:18]} 22. h3 {[%emt 0:01:01]} (22. hxg3 $2 fxg3 $1 23. Qd3 Qh2+ 24. Kf1 Bh3 $19) 22... Bxh3 $1 {[%emt 0:14:26][%cal Oh3g4] Hoping for ...Bg4!} 23. gxh3 {[%emt 0:01:17]} (23. dxe5 Be6 24. Qc2 Rac8 $19) ({White should try} 23. Nd2 $1 $14 Bd7 24. Nf1) 23... g2 $1 $11 {[%emt 0:00:10]} 24. dxe5 {[%emt 0:01:01]} Rg8 {[%emt 0:06:45]} 25. Qd2 {[%emt 0:01:37]} (25. exd6 $2 Qxh3 26. e5 Qh1+ 27. Kf2 g1=B+ 28. Rxg1 Qh4+ 29. Kf1 Rxg1+ 30. Kxg1 Rg8+ 31. Qg2 Rxg2+ 32. Kxg2 Qg3+ 33. Kf1 Qxf3+ 34. Ke1 Qe3+ 35. Kf1 Qxb3 $19) 25... Qxh3 {[%emt 0:01:56] ( -> ...Qh1+)} 26. Bd4 {[%emt 0:04:09] And now Kf2 would win.} (26. Qxd6 Qh1+ 27. Kf2 g1=Q+ 28. Rxg1 Qh2+) 26... dxe5 {[%emt 0:00:47]} 27. Bc5 {[%emt 0:00:31] [#]} (27. Bxe5 Qh1+ 28. Kf2 g1=Q+ 29. Ke2 Qxf3+ $3 {[%mdl 512]} 30. Kxf3 Qg4+ 31. Kf2 Qg2#) (27. Kf2 $1 $11 exd4 28. Rg1 (28. Qxf4 $2 Raf8 $19)) 27... Rad8 {[%emt 0:00:26]} (27... b6 $1 $17 {[%cal Rb6c5]} 28. Red1 Qh4 29. Qd7+ Rg7 30. Qf5+ Kh8 31. Qxe5 bxc5 32. Nxc5 Qh1+ 33. Kf2 g1=B+ 34. Rxg1 Qh2+ 35. Ke1 Qxg1+ 36. Kd2 Qe3+ 37. Kc2 Rd8) 28. Qc3 {[%emt 0:00:35]} Qh1+ $2 {[%emt 0:00:43][%mdl 8192] White now steadily converts the win.} (28... Rg3 $11 29. Kf2 (29. Qxe5 Qh1+ 30. Kf2 g1=B+ 31. Rxg1 Rxf3+ 32. Ke2 Qh2+ 33. Ke1 Qh4+ 34. Ke2 Qh2+ 35. Ke1 Qh4+ 36. Ke2 Qh2+ $11) 29... g1=R 30. Rxg1 Rd4 31. Bxd4 (31. Nxd4 $2 {gets mated.} Qh2+) 31... exd4 32. Qxd4 Qh2+ 33. Kf1 Rxf3+ 34. Ke1 Re3+ 35. Kd1 (35. Qxe3 fxe3 36. Rf1 Qb2 $17) 35... Qxg1+ 36. Kc2 Re2+ 37. Kd3 Re3+ 38. Kc2 Re2+ 39. Kd3 Re3+ 40. Kc2) 29. Kf2 $18 {[%emt 0:00:02][%cal Bg1f2,Bf2f1,Bf1e2][%mdl 32]} g1=Q+ {[%emt 0:00:36]} 30. Rxg1 {[%emt 0:00:06]} Qh2+ {[%emt 0:00:26]} 31. Kf1 {[%emt 0:00:20]} Rg3 {[%emt 0:00:33]} 32. Bf2 {[%emt 0:01:22]} ({And not} 32. Qxe5 Rxf3+ 33. Ke1 Qh4+ 34. Ke2 Qh2+ 35. Ke1 Qh4+ 36. Ke2 Qh2+ 37. Ke1 $11) 32... Rdg8 {[%emt 0:00:30]} 33. Bxg3 {[%emt 0:00:35]} Rxg3 {[%emt 0:00:17]} 34. Rxg3 {[%emt 0:00:25]} fxg3 {[%emt 0:00:01]} 35. Qd2 {[%emt 0:00:42]} Qh1+ {[%emt 0:00:49]} 36. Ke2 {[%emt 0:00:04]} Qh2+ {[%emt 0:00:41]} 37. Ke3 {[%emt 0:00:59] White wants to mate with Qxh2.} g2 {[%emt 0:00:19]} 38. Qf2 {[%emt 0:00:23]} h4 {[%emt 0:00:19]} 39. Kd3 {[%emt 0:00:49]} Qh3 {[%emt 0:01:04]} 40. Nc5 {[%emt 0:00:31] White mates.} Qh2 {[%emt 0:00:33]} 41. Rg1 {[%emt 0:04:09]} h3 {[%emt 0:00:19]} 42. Qh4+ {[%emt 0:01:08]} Kg6 {[%emt 0:01:43]} 43. Qg4+ {[%emt 0:01:59]} Kh7 {[%emt 0:01:20] [#]} 44. Ne6 $1 {[%emt 0:00:33] Weighted Error Value: White=0.13 (very precise) /Black=0.44} 1-0

[Event "Summer Prague Open-A 2022"]
[Site "Prague"]
[Date "2022.08.12"]
[Round "9.15"]
[White "Schimnatkowski, Lukas"]
[Black "Nemeth, Zalan"]
[Result "0-1"]
[ECO "B30"]
[WhiteElo "2189"]
[BlackElo "2194"]
[Annotator "TA"]
[PlyCount "62"]
[EventDate "2022.08.05"]
[EventType "swiss"]
[EventCountry "CZE"]
[SourceTitle "playchess.com"]
[Source "ChessBase"]
[SourceQuality "1"]
[TimeControl "40/5400+30:1800+30"]

{[%evp 9,62,19,20,20,38,6,4,0,26,3,17,17,36,28,34,20,24,15,42,16,42,40,21,14,20,-16,-13,0,23,11,7,-210,-216,-206,-213,-196,-208,-196,-174,-511,-485,-487,-265,-1121,-1121,-1077,-1080,-1506,-1531,-2066,-1982,-2125,-2116,-1706,-1598]} 1. e4 {[%emt 0:00:04]} c5 {[%emt 0:00:03]} 2. Nf3 {[%emt 0:00:10]} Nc6 {[%emt 0:00:13]} 3. Bb5 {[%emt 0:00:30]} e5 {[%emt 0:00:04]} 4. O-O {[%emt 0:03:30]} Bd6 {[%emt 0:00:03]} 5. a4 {[%emt 0:02:47]} Nf6 {[%emt 0:05:43]} 6. d3 {[%emt 0:02:44] B30: Sicilian: 2...Nc6 3 Bb5, lines without ...g6.} h6 {[%emt 0:03:07]} 7. Bc4 {[%emt 0:08:44]} Bc7 {[%emt 0:03:03]} 8. Nc3 {[%emt 0:00:29] The position is equal.} O-O {[%emt 0:02:03] [#]} 9. Re1 $146 {[%emt 0:02:47]} ({Predecessor:} 9. h3 Ne7 10. Be3 b6 11. a5 Bb7 12. Re1 d5 13. exd5 Nfxd5 14. Bd2 Ng6 15. Nxd5 Bxd5 16. Bxd5 Qxd5 17. axb6 axb6 18. Rxa8 Rxa8 {0-1 (67) Skripchenko,A (2441)-Cramling,P (2513) Monte Carlo 2015}) 9... Re8 {[%emt 0:05:42]} 10. Be3 {[%emt 0:07:17]} Nd4 {[%emt 0:07:24]} 11. Nd5 {[%emt 0:07:50]} d6 {[%emt 0:07:37]} 12. c3 {[%emt 0:07:57]} Nc6 {[%emt 0:01:59]} 13. Rc1 {[%emt 0:11:16]} Ba5 {[%emt 0:04:43]} 14. Qd2 {[%emt 0:11:09][%cal Oe3h6]} Be6 {[%emt 0:08:32] [#]} 15. Bxh6 $1 {[%emt 0:12:48]} gxh6 {[%emt 0:04:49]} 16. Qxh6 {[%emt 0:00:08]} Nh7 {[%emt 0:11:22] Prevents Qg5+.} 17. Re3 {[%emt 0:01:02][%mdl 1024] h4 is the strong threat. White has compensation.} Kh8 {[%emt 0:06:31]} 18. h4 {[%emt 0:06:27] And now Ng5 would win.} f6 {[%emt 0:06:43][%cal Bf7f6,Bf6f5][%mdl 32] Inhibits Ng5.} (18... Rg8 $5 {[%cal Rg8g6]} 19. Ng5 Rxg5 20. hxg5 Qxg5 21. Qxg5 Nxg5 $11) 19. h5 {[%emt 0:01:17] Threatens to win with Nh4.} f5 {[%emt 0:01:23] White must now prevent ...f4.} 20. Nh4 $2 {[%emt 0:07:42] Loses the game.} Qxh4 $19 {[%emt 0:00:36]} 21. Rg3 {[%emt 0:00:06][%csl Gg3][%cal Rh6g7] [#]} Rg8 {[%emt 0:00:13] Prevents Qg7+.} 22. Qxe6 {[%emt 0:00:26]} Rxg3 {[%emt 0:00:32]} (22... fxe4 $2 23. Rxg8+ Rxg8 {[#]} 24. Qxg8+ $3 {[%mdl 512]} (24. Nf4 Qg5 $15) 24... Kxg8 25. Ne7+ Kg7 26. Nf5+ Kh8 27. Nxh4 $18) 23. fxg3 {[%emt 0:00:06]} Qxg3 {[%emt 0:04:33] aiming for ...Rg8.} ({Inferior is} 23... Qxh5 24. exf5 Rf8 25. Rf1 $15) 24. exf5 $2 {[%emt 0:03:16]} (24. Rf1) 24... Rg8 {[%emt 0:02:05][%csl Gg8][%cal Rg3g2]} 25. Rc2 {[%emt 0:00:04]} Bd8 {[%emt 0:01:27]} ({But not} 25... Qe1+ $2 26. Kh2 Qh4+ 27. Kg1 Qe1+ 28. Kh2 Qh4+ 29. Kg1 Qe1+) (25... Nd8 $142 26. Qe7 Nc6) 26. f6 $2 {[%emt 0:00:52]} (26. Re2) 26... Ng5 {[%emt 0:04:15] Black is clearly winning.} 27. Qxg8+ {[%emt 0:01:39]} Kxg8 {[%emt 0:00:06]} 28. Ne7+ {[%emt 0:00:19]} Kh7 {[%emt 0:01:50]} 29. Bg8+ {[%emt 0:00:29]} Kh8 {[%emt 0:00:06] ( -> ...Nf3+)} 30. Bd5 {[%emt 0:00:36] Prevents Nf3+.} Bxe7 {[%emt 0:00:16]} 31. fxe7 {[%emt 0:00:08]} Nxe7 {[%emt 0:00:05] Weighted Error Value: White=1.09/Black=0.16 (very precise)} 0-1

[Event "Summer Prague Open-A 2022"]
[Site "Prague"]
[Date "2022.08.12"]
[Round "9.16"]
[White "Hollan, Martin"]
[Black "Lhotska, Anna"]
[Result "1/2-1/2"]
[ECO "A13"]
[WhiteElo "2399"]
[BlackElo "2113"]
[Annotator "TA"]
[PlyCount "123"]
[EventDate "2022.08.05"]
[EventType "swiss"]
[EventCountry "CZE"]
[SourceTitle "playchess.com"]
[Source "ChessBase"]
[SourceQuality "1"]
[TimeControl "40/5400+30:1800+30"]

{[%evp 11,123,14,15,0,0,0,0,-12,-15,-39,-40,-46,-5,-19,14,0,0,0,0,0,0,0,0,-8,35,0,0,0,8,0,9,0,47,0,34,39,133,134,147,47,58,45,112,87,87,87,79,77,86,85,79,49,112,86,112,42,96,88,107,91,83,66,55,26,26,25,22,15,16,14,14,14,54,47,74,27,27,27,27,0,54,14,14,0,0,-9,0,0,0,0,0,0,0,0,0,0,0,0,0,0,0,0,0,0,0,0,0,0,0,0,0,0,0,0]} 1. c4 {[%emt 0:00:05]} e6 {[%emt 0:00:07]} 2. Nf3 {[%emt 0:02:20]} d5 {[%emt 0:00:11]} 3. d4 {[%emt 0:01:25]} a6 {[%emt 0:00:08]} 4. e3 {[%emt 0:01:51]} Nf6 {[%emt 0:01:41]} 5. Nc3 {[%emt 0:00:48][%cal Bb1c3,Bc3e2,Be2g3][%mdl 32]} c5 {[%emt 0:02:40]} 6. cxd5 {[%emt 0:01:39]} exd5 {[%emt 0:00:37]} 7. dxc5 {[%emt 0:03:33] D40: Queen's Gambit Declined: Semi-Tarrasch with 5 e3.} Bxc5 {[%emt 0:00:24]} 8. Bd3 {[%emt 0:00:10]} O-O {[%emt 0:00:49] [#]} 9. Ne2 $146 {[%emt 0:02:01]} ({Predecessor:} 9. O-O Nc6 10. h3 Re8 11. b3 Qd6 12. Bb2 Ba7 13. Ne2 Bd7 14. Rc1 Rad8 15. Qd2 Bb8 16. Rfd1 Qe7 17. Nf4 Bc8 18. Ba1 d4 19. Nxd4 Nxd4 20. Bxd4 Bxf4 21. Bxf6 Qxf6 22. exf4 Bf5 23. Qc2 Bxd3 24. Rxd3 {½-½ (24) Pikula,D (2440)-Budisavljevic,L (2359) Bajina Basta 2019}) 9... Nc6 {[%emt 0:02:39]} 10. a3 {[%emt 0:00:47]} Re8 {[%emt 0:04:13]} 11. b4 {[%emt 0:01:05]} Bd6 {[%emt 0:02:51]} 12. Bb2 {[%emt 0:01:00]} Ne4 {[%emt 0:16:28]} 13. Ng3 {[%emt 0:08:49]} Bg4 {[%emt 0:04:29]} 14. Be2 {[%emt 0:07:50]} Qe7 {[%emt 0:05:21][%cal Od6b4] aiming for ...Bxb4+!} 15. O-O {[%emt 0:03:32]} Rad8 {[%emt 0:03:02]} 16. Nd4 {[%emt 0:14:56]} Bxe2 {[%emt 0:08:45]} 17. Qxe2 {[%emt 0:02:11] Threatens to win with Ngf5.} Ne5 {[%emt 0:10:55]} 18. Rad1 {[%emt 0:16:03]} g6 {[%emt 0:08:20]} 19. Nf3 {[%emt 0:11:13]} Bb8 {[%emt 0:07:21]} 20. Ba1 {[%emt 0:02:06]} Qe6 {[%emt 0:12:10]} 21. a4 {[%emt 0:08:49]} Nc4 {[%emt 0:03:09]} (21... Nxf3+ $11 22. gxf3 Ng5) 22. Qd3 {[%emt 0:02:47]} (22. Nxe4 $14 {should be considered.} Qxe4 23. Qd3) 22... Nxg3 {[%emt 0:00:41]} (22... Bxg3 $5 23. hxg3 f6 $11) 23. hxg3 {[%emt 0:00:15]} Qc6 {[%emt 0:01:13]} (23... Rd6 $14) 24. Qd4 $16 {[%emt 0:04:26][%csl Ga1][%cal Rd4h8]} Ne5 {[%emt 0:00:38] [#]} 25. Qh4 {[%emt 0:01:12]} (25. Nh2 $1 $16) 25... Nxf3+ {[%emt 0:01:54]} 26. gxf3 {[%emt 0:00:05]} Rd7 {[%emt 0:01:12]} (26... d4 $14) 27. b5 {[%emt 0:00:22]} axb5 {[%emt 0:00:36]} 28. axb5 {[%emt 0:00:01]} Qe6 {[%emt 0:00:15]} 29. Kg2 {[%emt 0:02:27][%cal Oh4h7] [#] Hoping for Qxh7+!} Be5 {[%emt 0:00:27]} 30. Bxe5 {[%emt 0:00:35]} Qxe5 {[%emt 0:00:05]} 31. Rh1 {[%emt 0:00:55]} f5 {[%emt 0:00:40]} (31... h5 $1 $14) 32. Rd2 {[%emt 0:00:23]} Red8 {[%emt 0:00:55]} 33. Rd4 {[%emt 0:00:44]} ({Better is} 33. Rc1 $16) 33... Qe6 {[%emt 0:00:29]} (33... Qe7 $14) 34. Rc1 {[%emt 0:00:33]} Qb6 {[%emt 0:00:37]} 35. Rb1 {[%emt 0:00:28] White is more active.} Qc5 {[%emt 0:00:32]} 36. Qf6 {[%emt 0:00:28]} Qd6 $1 {[%emt 0:00:52]} 37. Qxd6 {[%emt 0:00:11]} (37. Qg5 $5 {[%cal Re3e4]}) 37... Rxd6 $14 {[%emt 0:00:06][%mdl 4096] Endgame KRR-KRR} 38. Rc1 {[%emt 0:00:25]} Kf7 {[%emt 0:00:33]} 39. Rc7+ {[%emt 0:00:29]} R8d7 $1 {[%emt 0:00:25]} 40. Rc5 {[%emt 0:00:29]} Ke6 {[%emt 0:01:05]} 41. g4 {[%emt 0:04:46]} b6 {[%emt 0:08:20]} 42. Rc8 {[%emt 0:06:45]} Ra7 {[%emt 0:01:39]} 43. g5 {[%emt 0:03:35]} (43. Kg3 $16) 43... Rdd7 $11 {[%emt 0:06:42]} 44. Rc6+ {[%emt 0:06:23]} Rd6 {[%emt 0:00:32]} 45. e4 {[%emt 0:04:35]} Rad7 {[%emt 0:05:30]} (45... Rxc6 $11 46. exd5+ Ke5 47. bxc6 Kd6) 46. exd5+ {[%emt 0:00:28]} Ke5 {[%emt 0:00:27] The position is equal.} 47. Rd1 {[%emt 0:01:50] Black must now prevent Kg3.} Kf4 {[%emt 0:03:07]} 48. Rh1 {[%emt 0:00:46][%cal Oh1h7]} Kxg5 {[%emt 0:00:28]} (48... Rxd5 {looks sharper.} 49. Rxb6 Kxg5 50. Kg3 f4+) 49. Rxh7 $1 {[%emt 0:01:02]} Rxd5 {[%emt 0:00:55]} 50. Rxd7 {[%emt 0:00:09]} Rxd7 {[%emt 0:00:04]} 51. Rxb6 {[%emt 0:00:05] KR-KR} Rd1 {[%emt 0:03:16]} 52. f4+ {[%emt 0:01:33]} Kxf4 {[%emt 0:00:13]} 53. Rxg6 {[%emt 0:00:07]} Rb1 {[%emt 0:00:06]} 54. Rb6 {[%emt 0:00:31]} Rb2 {[%emt 0:00:24]} 55. Rb8 {[%emt 0:00:16]} Rb3 {[%emt 0:00:27]} 56. b6 {[%emt 0:02:17]} Rb2 {[%emt 0:00:19]} 57. Rb7 {[%emt 0:02:01]} Rb3 {[%emt 0:00:26]} 58. Rb8 {[%emt 0:00:20]} Rb2 {[%emt 0:00:10]} 59. b7 {[%emt 0:00:17]} Rb3 {[%emt 0:00:25]} 60. Kh2 {[%emt 0:01:17]} Rb2 {[%emt 0:01:20]} 61. Kh3 {[%emt 0:00:59]} Rb1 {[%emt 0:00:22]} 62. Kg2 {[%emt 0:00:19] Weighted Error Value: White=0.13 (very precise) /Black=0.16 (very precise)} 1/2-1/2

[Event "Summer Prague Open-A 2022"]
[Site "Prague"]
[Date "2022.08.12"]
[Round "9.17"]
[White "Pap, Gyula"]
[Black "Winter, Ondrej"]
[Result "1-0"]
[ECO "B17"]
[WhiteElo "2481"]
[BlackElo "2168"]
[Annotator "TA"]
[PlyCount "53"]
[EventDate "2022.08.05"]
[EventType "swiss"]
[EventCountry "CZE"]
[SourceTitle "playchess.com"]
[Source "ChessBase"]
[SourceQuality "1"]
[TimeControl "40/5400+30:1800+30"]

{[%evp 21,53,35,27,0,22,35,204,221,200,223,215,186,282,293,333,320,322,293,392,346,457,338,393,351,430,401,447,456,445,449,435,423,442,358]} 1. e4 {[%emt 0:00:04]} c6 {[%emt 0:00:08]} 2. d4 {[%emt 0:01:36]} d5 {[%emt 0:00:04]} 3. Nd2 {[%emt 0:00:28][%cal Bb1d2,Bd2e4,Be4g5][%mdl 32]} dxe4 {[%emt 0:00:15]} 4. Nxe4 {[%emt 0:00:07]} Nd7 {[%emt 0:00:46]} 5. Ng5 {[%emt 0:11:19]} Ngf6 {[%emt 0:01:16]} 6. Bd3 {[%emt 0:00:52]} e6 {[%emt 0:00:48]} 7. N1f3 {[%emt 0:06:02]} Bd6 {[%emt 0:01:52]} 8. Qe2 {[%emt 0:02:22]} h6 {[%emt 0:02:17]} 9. Ne4 {[%emt 0:02:11]} Nxe4 {[%emt 0:01:08]} 10. Bxe4 {[%emt 0:00:14]} Nf6 {[%emt 0:02:17]} 11. Bd3 {[%emt 0:00:09]} b6 {[%emt 0:09:04]} 12. a4 {[%emt 0:03:20] [#] B17: Caro-Kann: Modern Line (4...Nd7).} O-O $146 {[%emt 0:18:16]} ({Predecessor:} 12... a5 13. O-O Qc7 14. h3 Nd5 15. Ne5 Bxe5 16. dxe5 Nb4 17. Bc4 Ba6 18. Bxa6 Nxa6 19. f4 g6 {½-½ (47) Dimitrov,R (2459)-Emiroglu,C (2328) Skopje 2014}) 13. g4 {[%emt 0:10:02]} Nxg4 {[%emt 0:19:53] [#]} (13... e5 $14 14. dxe5 Re8) 14. h3 $1 $18 {[%emt 0:05:06] White is clearly better.} ({Worse is} 14. Qe4 f5 15. Qe2 (15. Qxc6 $2 Rb8 $19) 15... c5 $17) 14... e5 {[%emt 0:05:27][%cal Oe5d4] White must now prevent ...exd4!} 15. hxg4 {[%emt 0:03:45]} exd4 {[%emt 0:01:56] And now ...Re8 would win.} 16. Nd2 {[%emt 0:04:04]} ({Resist} 16. Nxd4 Bb4+ 17. c3 Qxd4) 16... Re8 {[%emt 0:09:34]} (16... f5 {is a better defense.}) 17. Ne4 {[%emt 0:00:09]} f5 {[%emt 0:02:58]} 18. gxf5 {[%emt 0:02:32]} Bxf5 {[%emt 0:00:18]} 19. Bd2 {[%emt 0:02:16]} Qe7 {[%emt 0:01:26][%cal Rf5e4]} 20. f3 {[%emt 0:02:11] [#] aiming for 0-0-0.} Bxe4 {[%emt 0:10:09]} 21. Bxe4 {[%emt 0:00:28]} Bg3+ {[%emt 0:01:37]} 22. Kf1 {[%emt 0:01:42]} Qf7 {[%emt 0:04:49]} 23. Rg1 {[%emt 0:08:59]} d3 {[%emt 0:02:58]} 24. cxd3 {[%emt 0:01:44] White is clearly winning.} Bf4 {[%emt 0:01:29]} 25. Bxf4 {[%emt 0:02:16]} Qxf4 {[%emt 0:00:06]} 26. Rg4 {[%emt 0:00:15]} Qe5 {[%emt 0:00:56]} 27. Kg2 {[%emt 0:00:42] Black did not feel at home in the position after the opening.  Weighted Error Value: White=0.08 (flawless) /Black=0.55} 1-0

[Event "Summer Prague Open-A 2022"]
[Site "Prague"]
[Date "2022.08.12"]
[Round "9.18"]
[White "Meissner, Felix"]
[Black "Kristiansen, Willy M"]
[Result "1-0"]
[ECO "A14"]
[WhiteElo "2381"]
[BlackElo "2121"]
[Annotator "TA"]
[PlyCount "39"]
[EventDate "2022.08.05"]
[EventType "swiss"]
[EventCountry "CZE"]
[SourceTitle "playchess.com"]
[Source "ChessBase"]
[SourceQuality "1"]
[TimeControl "40/5400+30:1800+30"]

{[%evp 11,39,10,19,16,10,13,59,43,31,33,24,30,45,-9,-2,-8,18,0,0,-15,2,-81,-31,-35,20,27,87,91,1688,1565]} 1. Nf3 {[%emt 0:00:07]} d5 {[%emt 0:00:11]} 2. c4 {[%emt 0:01:19]} e6 {[%emt 0:00:11]} 3. g3 {[%emt 0:00:22]} Nf6 {[%emt 0:00:08]} 4. Bg2 {[%emt 0:00:16]} Be7 {[%emt 0:00:10]} 5. O-O {[%emt 0:00:33]} O-O {[%emt 0:00:07]} 6. b3 {[%emt 0:03:07]} b6 {[%emt 0:00:17]} 7. Bb2 {[%emt 0:02:28] A14: English Opening: 1...e6 with b3 by White.} c5 {[%emt 0:00:18]} 8. d4 {[%emt 0:01:19]} cxd4 {[%emt 0:01:55]} (8... Nbd7 $11 {was preferrable.}) 9. cxd5 {[%emt 0:00:30] White is slightly better.} Nxd5 {[%emt 0:00:25][%cal Od4d3]} 10. Nxd4 {[%emt 0:01:15]} Bb7 {[%emt 0:00:36]} 11. Nd2 {[%emt 0:01:44]} Nc6 {[%emt 0:01:48]} 12. Ne4 {[%emt 0:01:31]} (12. Nxc6 $14 Bxc6 13. Rc1) 12... Rc8 $11 {[%emt 0:03:14]} 13. Rc1 {[%emt 0:02:44] [#]} Na5 $146 {[%emt 0:16:12]} ({Predecessor:} 13... Qd7 14. Nxc6 Bxc6 15. Nc3 Nxc3 16. Rxc3 Qxd1 17. Rxd1 Bb5 18. Bf3 Rxc3 19. Bxc3 {½-½ (31) Harikrishna,P (2713)-Duda,J (2755) Prague 2020}) 14. Rxc8 {[%emt 0:04:05]} Qxc8 {[%emt 0:00:44]} 15. Nb5 {[%emt 0:01:15]} Qd7 {[%emt 0:04:05]} 16. a4 {[%emt 0:14:02]} ({Much weaker is} 16. Nxa7 Ba8 17. Qd4 f6 $17) (16. Nbc3 $11 {remains equal.}) 16... a6 {[%emt 0:00:47]} (16... Rd8 $17 {[%cal Od5f4] ...Nf4! is the strong threat.} 17. Qd4 f6) 17. Nbc3 $15 {[%emt 0:01:10]} ({Reject} 17. Qd4 f6 18. Nbc3 Nxb3 $17) 17... Rd8 {[%emt 0:01:27]} ({Better is} 17... f6 $15) 18. Nxd5 $11 {[%emt 0:01:02]} Bxd5 {[%emt 0:08:28]} (18... exd5 $11 19. Qd4 f6 20. Qxb6 dxe4 21. Qxa5 Qd5 22. Qxd5+ Bxd5) 19. Qd4 $1 $16 {[%emt 0:00:42][%csl Gb2,LRb6,LRg7][%cal Rd4g7]} Bf8 {[%emt 0:00:34][%mdl 8192] [#]} (19... f6 $16) 20. Nf6+ $1 {[%emt 0:02:22][%mdl 512] Weighted Error Value: White=0.21 (precise) /Black=0.28 (precise)} 1-0